fUSD/lending_fUSD_20240521
["ID","MTS","AMOUNT","RATE_DAILY","PERIOD"]
[327619316,1716253876370,-1215.2,0.00039452,6]
[327619317,1716253876380,-911.21,0.00039452,6]
[327619318,1716253876389,-1206.31,0.00039452,6]
[327619319,1716253876399,-2549.52,0.00039452,6]
[327619320,1716253876408,-1271.11,0.00039452,6]
[327619321,1716253876419,-500.0,0.00039452,6]
[327619322,1716253876429,-1963.2,0.00039452,6]
[327619323,1716253876441,-1287.76,0.00039452,6]
[327619324,1716253876451,-500.0,0.00039452,6]
[327619325,1716253876461,-787.41,0.00039452,6]
[327619326,1716253876471,-2041.37,0.00039452,6]
[327619327,1716253876481,-4727.93,0.00039452,6]
[327619328,1716253876491,-725.76,0.00039452,6]
[327619329,1716253876501,-500.0,0.00039452,6]
[327619330,1716253876511,-500.0,0.00039452,6]
[327619331,1716253876520,-940.25,0.00039452,6]
[327619332,1716253876530,-500.0,0.00039452,6]
[327619333,1716253876540,-11207.82,0.00039452,6]
[327619334,1716253876550,-500.0,0.00039452,6]
[327619335,1716253876560,-3429.14,0.00039452,6]
[327619336,1716253876570,-1310.86,0.00039452,6]
[327619337,1716253876579,-7702.29,0.00039452,6]
[327619338,1716253876589,-1652.48,0.00039452,6]
[327619339,1716253876599,-1102.4,0.00039452,6]
[327619340,1716253876608,-2767.81,0.00039452,6]
[327619341,1716253876618,-500.0,0.00039452,6]
[327619342,1716253876627,-1593.28,0.00039452,6]
[327619343,1716253876637,-1498.6,0.00039452,6]
[327619344,1716253876647,-711.06,0.00039452,6]
[327619345,1716253876657,-1615.49,0.00039452,6]
[327619346,1716253876666,-927.41,0.00039452,6]
[327619347,1716253876676,-577.62,0.00039452,6]
[327619348,1716253876686,-500.0,0.00039452,6]
[327619349,1716253876702,-1922.15,0.00039452,6]
[327619350,1716253876717,-1369.43,0.00039452,6]
[327619351,1716253876726,-500.0,0.00039452,6]
[327619352,1716253876736,-1578.87,0.00039452,6]
[327619353,1716253876746,-2072.22,0.00039452,6]
[327619354,1716253876757,-610.63417114,0.00039452,6]
[327619355,1716253876766,-500.0,0.00039452,6]
[327619356,1716253876776,-500.0,0.00039452,6]
[327619357,1716253876787,-1795.59,0.00039452,6]
[327619358,1716253876799,-519.07,0.00039452,6]
[327619359,1716253876813,-926.58,0.00039452,6]
[327619360,1716253876824,-1413.58,0.00039452,6]
[327619361,1716253876835,-10796.43,0.00039452,6]
[327619362,1716253876845,-5964.25,0.00039452,6]
[327619363,1716253876856,-1046.79,0.00039452,6]
[327619364,1716253876866,-947.81,0.00039452,6]
[327619365,1716253876876,-3101.42,0.00039452,6]
[327619366,1716253876887,-2071.94,0.00039452,6]
[327619367,1716253876897,-500.0,0.00039452,6]
[327619368,1716253876907,-1958.94,0.00039452,6]
[327619369,1716253876917,-1534.32,0.00039452,6]
[327619370,1716253876928,-7168.9,0.00039452,6]
[327619371,1716253876941,-507.11,0.00039452,6]
[327619372,1716253876954,-500.36,0.00039452,6]
[327619373,1716253876964,-3927.07,0.00039452,6]
[327619374,1716253876975,-1415.86,0.00039452,6]
[327619375,1716253876986,-399.0,0.00039452,29]
[327619376,1716253876996,-6760.48,0.00039452,6]
[327619377,1716253877007,-736.01,0.00039452,6]
[327619378,1716253877018,-500.0,0.00039452,6]
[327619379,1716253877028,-1044.3,0.00039452,6]
[327619380,1716253877040,-1483.85,0.00039452,6]
[327619381,1716253877050,-5484.04,0.00039452,6]
[327619382,1716253877061,-633.44,0.00039452,6]
[327619383,1716253877071,-1061.32,0.00039452,6]
[327619384,1716253877082,-5038.42,0.00039452,6]
[327619385,1716253877094,-2978.24,0.00039452,6]
[327619386,1716253877104,-13697.24,0.00039452,6]
[327619387,1716253877115,-500.0,0.00039452,6]
[327619388,1716253877125,-1523.96,0.00039452,6]
[327619389,1716253877136,-3532.36,0.00039452,6]
[327619390,1716253877148,-691.31,0.00039452,6]
[327619391,1716253877159,-811.02,0.00039452,6]
[327619392,1716253877169,-3073.33,0.00039452,6]
[327619393,1716253877180,-926.06,0.00039452,6]
[327619394,1716253877196,-1044.81,0.00039452,6]
[327619395,1716253877206,-1455.14,0.00039452,6]
[327619396,1716253877217,-2047.81,0.00039452,6]
[327619397,1716253877228,-3188.64,0.00039452,6]
[327619398,1716253877238,-1592.91,0.00039452,6]
[327619399,1716253877248,-933.81,0.00039452,6]
[327619400,1716253877259,-3031.97,0.00039452,6]
[327619401,1716253877269,-1207.33,0.00039452,6]
[327619402,1716253877279,-500.0,0.00039452,6]
[327619403,1716253877290,-500.0,0.00039452,6]
[327619404,1716253877301,-3116.99,0.00039452,6]
[327619405,1716253877311,-3434.1,0.00039452,6]
[327619406,1716253877321,-1027.67,0.00039452,6]
[327619407,1716253877331,-1175.8,0.00039452,6]
[327619408,1716253877342,-4452.68,0.00039452,6]
[327619409,1716253877352,-500.0,0.00039452,6]
[327619410,1716253877362,-500.0,0.00039452,6]
[327619411,1716253877372,-500.0,0.00039452,6]
[327619412,1716253877382,-1088.9,0.00039452,6]
[327619413,1716253877392,-744.7,0.00039452,6]
[327619414,1716253877402,-773.26,0.00039452,6]
[327619415,1716253877412,-1288.19,0.00039452,6]
[327619416,1716253877422,-3557.39,0.00039452,6]
[327619417,1716253877433,-669.1,0.00039452,6]
[327619418,1716253877447,-5220.31,0.00039452,6]
[327619419,1716253877459,-1801.55,0.00039452,6]
[327619420,1716253877469,-4125.68,0.00039452,6]
[327619421,1716253877479,-962.5,0.00039452,6]
[327619422,1716253877489,-4012.45,0.00039452,6]
[327619423,1716253877499,-7676.63,0.00039452,6]
[327619424,1716253877508,-1702.18,0.00039452,6]
[327619425,1716253877519,-1505.78,0.00039452,6]
[327619426,1716253877529,-1129.33,0.00039452,6]
[327619427,1716253877539,-2623.88,0.00039452,6]
[327619428,1716253877549,-3225.41,0.00039452,6]
[327619429,1716253877560,-1990.39,0.00039452,6]
[327619430,1716253877570,-7840.8,0.00039452,6]
[327619431,1716253877580,-1890.61,0.00039452,6]
[327619432,1716253877589,-1500.91,0.00039452,6]
[327619433,1716253877599,-758.99,0.00039452,6]
[327619434,1716253877609,-1572.53,0.00039452,6]
[327619435,1716253877619,-1657.9,0.00039452,6]
[327619436,1716253877630,-500.0,0.00039452,6]
[327619437,1716253877639,-1108.32,0.00039452,6]
[327619438,1716253877649,-604.82001978,0.00039452,6]
[327619439,1716253877659,-175.631296,0.00039452,14]
[327619440,1716253877670,-500.0,0.00039452,6]
[327619441,1716253877680,-500.0,0.00039452,6]
[327619442,1716253877694,-164.32880156,0.00039452,6]
[327619443,1716253877703,-500.0,0.00039452,6]
[327619444,1716253877719,-500.0,0.00039452,6]
[327619445,1716253877729,-500.0,0.00039452,6]
[327619446,1716253877741,-543.36,0.00039452,6]
[327619447,1716253877751,-500.0,0.00039452,6]
[327619448,1716253877762,-150.0,0.00039452,7]
[327619449,1716253877772,-1587.15228477,0.00039476,13]
[327619450,1716253877783,-204.20972862,0.00039512,2]
[327619451,1716253877792,-7498.22919335,0.00039512,2]
[327619452,1716253877803,-771.0,0.00039566,20]
[327619453,1716253877813,-466.0,0.00039566,20]
[327619454,1716253877822,-171.41,0.000396,7]
[327619455,1716253877833,-1587.15228477,0.0003965,13]
[327619456,1716253877843,-1586.59162548,0.00039665,2]
[327619457,1716253877852,-160.0,0.000397,14]
[327619458,1716253877862,-2000.0,0.000397,25]
[327619459,1716253877872,-160.0,0.000397,14]
[327619460,1716253877882,-150.0,0.000397,29]
[327619461,1716253877891,-150.0,0.000397,14]
[327619462,1716253877901,-150.0,0.000397,10]
[327619463,1716253877911,-204.20972862,0.00039706,2]
[327619464,1716253877921,-7498.22919335,0.00039706,2]
[327619465,1716253877931,-150.0,0.0003971,7]
[327619466,1716253877944,-175.0,0.00039722,120]
[327619467,1716253877954,-150.0,0.00039725,2]
[327619468,1716253877964,-500.0,0.00039726,6]
[327619469,1716253877973,-500.0,0.00039726,6]
[327619470,1716253877983,-766.38,0.00039726,6]
[327619471,1716253877992,-500.0,0.00039726,6]
[327619472,1716253878002,-500.0,0.00039726,6]
[327619473,1716253878012,-719.52,0.00039726,6]
[327619474,1716253878022,-500.0,0.00039726,6]
[327619475,1716253878032,-530.42,0.00039726,6]
[327619476,1716253878041,-484.34313228,0.00039726,2]
[327619477,1716253878052,-726.68,0.00039726,6]
[327619478,1716253878062,-722.91,0.00039726,6]
[327619479,1716253878072,-500.0,0.00039726,6]
[327619480,1716253878081,-500.0,0.00039726,6]
[327619481,1716253878091,-511.94,0.00039726,6]
[327619482,1716253878101,-500.0,0.00039726,2]
[327619483,1716253878111,-500.0,0.00039726,6]
[327619484,1716253878121,-500.0,0.00039726,6]
[327619485,1716253878132,-500.0,0.00039726,6]
[327619486,1716253878142,-500.0,0.00039726,6]
[327619487,1716253878151,-929.33,0.00039726,6]
[327619488,1716253878162,-1098.38,0.00039726,6]
[327619489,1716253878172,-500.0,0.00039726,6]
[327619490,1716253878182,-500.0,0.00039726,6]
[327619491,1716253878195,-585.09,0.00039726,6]
[327619492,1716253878206,-896.9,0.00039726,6]
[327619493,1716253878216,-656.21,0.00039726,6]
[327619494,1716253878225,-500.0,0.00039726,6]
[327619495,1716253878235,-500.0,0.00039726,6]
[327619496,1716253878244,-713.2,0.00039726,6]
[327619497,1716253878254,-677.93,0.00039726,6]
[327619498,1716253878263,-654.42,0.00039726,6]
[327619499,1716253878272,-500.0,0.00039726,6]
[327619500,1716253878282,-601.35,0.00039726,6]
[327619501,1716253878293,-580.65,0.00039726,6]
[327619502,1716253878303,-737.96,0.00039726,6]
[327619503,1716253878313,-714.29,0.00039726,6]
[327619504,1716253878322,-655.63,0.00039726,6]
[327619505,1716253878332,-597.09,0.00039726,6]
[327619506,1716253878343,-500.0,0.00039726,6]
[327619507,1716253878353,-500.0,0.00039726,6]
[327619508,1716253878362,-500.0,0.00039726,6]
[327619509,1716253878373,-500.0,0.00039726,6]
[327619510,1716253878383,-846.95,0.00039726,6]
[327619511,1716253878393,-624.22,0.00039726,6]
[327619512,1716253878404,-766.13,0.00039726,6]
[327619513,1716253878415,-500.0,0.00039726,6]
[327619514,1716253878710,-500.0,0.00039726,6]
[327619515,1716253878722,-413.5297,0.00039726,6]
[327619516,1716253878732,-848.1,0.00039726,6]
[327619517,1716253878743,-941.22,0.00039726,6]
[327619518,1716253878754,-730.95,0.00039726,6]
[327619519,1716253878769,-725.79,0.00039726,6]
[327619520,1716253878790,-500.0,0.00039726,6]
[327619521,1716253878812,-500.0,0.00039726,6]
[327619522,1716253878835,-667.6,0.00039726,6]
[327619523,1716253878856,-500.0,0.00039726,6]
[327619524,1716253878879,-685.07,0.00039726,6]
[327619525,1716253878902,-934.07,0.00039726,6]
[327619526,1716253878924,-517.98,0.00039726,6]
[327619527,1716253878948,-500.0,0.00039726,6]
[327619528,1716253878958,-500.0,0.00039726,6]
[327619529,1716253878968,-670.21,0.00039726,6]
[327619530,1716253878978,-525.91,0.00039726,6]
[327619531,1716253878988,-500.0,0.00039726,6]
[327619532,1716253878997,-500.0,0.00039726,6]
[327619533,1716253879007,-1236.09,0.00039726,6]
[327619534,1716253879016,-500.0,0.00039726,6]
[327619535,1716253879025,-601.18,0.00039726,6]
[327619536,1716253879035,-568.48,0.00039726,6]
[327619537,1716253879045,-500.0,0.00039726,6]
[327619538,1716253879054,-875.14,0.00039726,6]
[327619539,1716253879064,-542.7,0.00039726,6]
[327619540,1716253879074,-500.0,0.00039726,6]
[327619541,1716253879083,-792.2,0.00039726,6]
[327619542,1716253879093,-500.0,0.00039726,6]
[327619543,1716253879102,-500.0,0.00039726,6]
[327619544,1716253879112,-500.0,0.00039726,6]
[327619545,1716253879121,-1037.3,0.00039726,6]
[327619546,1716253879131,-500.0,0.00039726,6]
[327619547,1716253879143,-630.75,0.00039726,6]
[327619548,1716253879153,-500.0,0.00039726,6]
[327619549,1716253879164,-500.0,0.00039726,6]
[327619550,1716253879174,-1653.32,0.00039726,6]
[327619551,1716253879183,-500.0,0.00039726,6]
[327619552,1716253879198,-500.0,0.00039726,6]
[327619553,1716253879208,-500.0,0.00039726,6]
[327619554,1716253879217,-500.0,0.00039726,6]
[327619555,1716253879227,-500.0,0.00039726,6]
[327619556,1716253879236,-1120.61,0.00039726,6]
[327619557,1716253879245,-669.25,0.00039726,6]
[327619558,1716253879255,-500.0,0.00039726,6]
[327619559,1716253879265,-813.04,0.00039726,6]
[327619560,1716253879274,-500.0,0.00039726,6]
[327619561,1716253879283,-1166.25,0.00039726,6]
[327619562,1716253879292,-504.64,0.00039726,6]
[327619563,1716253879301,-451.54428306,0.00039726,6]
[327619564,1716253879311,-500.0,0.00039726,6]
[327619565,1716253879320,-500.0,0.00039726,6]
[327619566,1716253879330,-500.0,0.00039726,6]
[327619567,1716253879340,-939.86,0.00039726,6]
[327619568,1716253879351,-500.0,0.00039726,6]
[327619569,1716253879360,-811.87,0.00039726,6]
[327619570,1716253879369,-597.24,0.00039726,6]
[327619571,1716253879379,-500.0,0.00039726,6]
[327619572,1716253879389,-694.56,0.00039726,6]
[327619573,1716253879399,-1871.88,0.00039726,6]
[327619574,1716253879409,-500.0,0.00039726,6]
[327619575,1716253879418,-500.0,0.00039726,6]
[327619576,1716253879428,-744.65,0.00039726,6]
[327619577,1716253879438,-500.0,0.00039726,6]
[327619578,1716253879453,-500.0,0.00039726,6]
[327619579,1716253879462,-500.0,0.00039726,6]
[327619580,1716253879471,-1369.96,0.00039726,6]
[327619581,1716253879480,-635.95,0.00039726,6]
[327619582,1716253879489,-2112.37,0.00039726,6]
[327619583,1716253879499,-871.55,0.00039726,6]
[327619584,1716253879508,-887.0,0.00039726,6]
[327619585,1716253879517,-827.16,0.00039726,6]
[327619586,1716253879526,-500.0,0.00039726,6]
[327619587,1716253879536,-721.74,0.00039726,6]
[327619588,1716253879545,-529.85,0.00039726,6]
[327619589,1716253879555,-500.0,0.00039726,6]
[327619590,1716253879565,-500.0,0.00039726,6]
[327619591,1716253879575,-500.0,0.00039726,6]
[327619592,1716253879585,-1197.69,0.00039726,6]
[327619593,1716253879595,-500.0,0.00039726,6]
[327619594,1716253879605,-1190.48,0.00039726,6]
[327619595,1716253879615,-1828.03,0.00039726,6]
[327619596,1716253879625,-1054.6,0.00039726,6]
[327619597,1716253879635,-500.0,0.00039726,6]
[327619598,1716253879645,-500.0,0.00039726,6]
[327619599,1716253879655,-1567.69,0.00039726,6]
[327619600,1716253879665,-575.98,0.00039726,6]
[327619601,1716253879674,-500.0,0.00039726,6]
[327619602,1716253879684,-500.0,0.00039726,6]
[327619603,1716253879701,-500.0,0.00039726,6]
[327619604,1716253879716,-1298.53,0.00039726,6]
[327619605,1716253879725,-500.0,0.00039726,6]
[327619606,1716253879738,-697.63,0.00039726,6]
[327619607,1716253879748,-554.63,0.00039726,6]
[327619608,1716253879759,-500.0,0.00039726,6]
[327619609,1716253879770,-1013.55,0.00039726,6]
[327619610,1716253879780,-590.82,0.00039726,6]
[327619611,1716253879790,-500.0,0.00039726,6]
[327619612,1716253879800,-1746.3,0.00039726,6]
[327619613,1716253879810,-384.74221412,0.00039726,6]
[327619614,1716253879820,-691.29,0.00039726,6]
[327619615,1716253879829,-500.0,0.00039726,6]
[327619616,1716253879840,-798.66,0.00039726,6]
[327619617,1716253879849,-1349.81,0.00039726,6]
[327619618,1716253879859,-500.0,0.00039726,6]
[327619619,1716253879868,-500.0,0.00039726,6]
[327619620,1716253879878,-500.0,0.00039726,6]
[327619621,1716253879888,-809.51,0.00039726,6]
[327619622,1716253879898,-618.32,0.00039726,6]
[327619623,1716253879909,-1019.22,0.00039726,6]
[327619624,1716253879919,-1306.71,0.00039726,6]
[327619625,1716253879929,-1515.04,0.00039726,6]
[327619626,1716253879944,-1950.47,0.00039726,6]
[327619627,1716253879954,-500.0,0.00039726,6]
[327619628,1716253879964,-1020.07,0.00039726,6]
[327619629,1716253879973,-500.0,0.00039726,6]
[327619630,1716253879983,-718.21,0.00039726,6]
[327619631,1716253879993,-1369.07,0.00039726,6]
[327619632,1716253880003,-1227.07,0.00039726,6]
[327619633,1716253880013,-709.46,0.00039726,6]
[327619634,1716253880026,-1409.6,0.00039726,6]
[327619635,1716253880035,-525.27,0.00039726,6]
[327619636,1716253880045,-1316.57,0.00039726,6]
[327619637,1716253880055,-500.0,0.00039726,6]
[327619638,1716253880065,-1496.02,0.00039726,6]
[327619639,1716253880075,-500.0,0.00039726,6]
[327619640,1716253880085,-500.0,0.00039726,6]
[327619641,1716253880095,-913.46,0.00039726,6]
[327619642,1716253880105,-662.89,0.00039726,6]
[327619643,1716253880115,-500.0,0.00039726,6]
[327619644,1716253880124,-1011.32,0.00039726,6]
[327619645,1716253880133,-872.0,0.00039726,6]
[327619646,1716253880145,-938.12,0.00039726,6]
[327619647,1716253880155,-940.01,0.00039726,6]
[327619648,1716253880164,-635.83,0.00039726,6]
[327619649,1716253880174,-500.0,0.00039726,6]
[327619650,1716253880184,-500.0,0.00039726,6]
[327619651,1716253880197,-879.24,0.00039726,6]
[327619652,1716253880206,-500.0,0.00039726,6]
[327619653,1716253880216,-1903.66,0.00039726,6]
[327619654,1716253880226,-821.19,0.00039726,6]
[327619655,1716253880236,-1569.82,0.00039726,6]
[327619656,1716253880246,-500.0,0.00039726,6]
[327619657,1716253880256,-1123.26,0.00039726,6]
[327619658,1716253880265,-1224.82,0.00039726,6]
[327619659,1716253880274,-500.0,0.00039726,6]
[327619660,1716253880284,-150.0,0.00039726,6]
[327619661,1716253880293,-992.53,0.00039726,6]
[327619662,1716253880303,-984.64,0.00039726,6]
[327619663,1716253880313,-785.45,0.00039726,6]
[327619664,1716253880322,-1072.18,0.00039726,6]
[327619665,1716253880332,-500.0,0.00039726,6]
[327619666,1716253880341,-500.0,0.00039726,6]
[327619667,1716253880351,-1442.98,0.00039726,6]
[327619668,1716253880361,-718.51,0.00039726,6]
[327619669,1716253880371,-500.0,0.00039726,6]
[327619670,1716253880380,-1307.29,0.00039726,6]
[327619671,1716253880390,-637.93,0.00039726,6]
[327619672,1716253880399,-1236.67,0.00039726,6]
[327619673,1716253880408,-500.0,0.00039726,6]
[327619674,1716253880417,-596.26,0.00039726,6]
[327619675,1716253880429,-500.0,0.00039726,6]
[327619676,1716253880438,-961.55,0.00039726,6]
[327619677,1716253880451,-500.0,0.00039726,6]
[327619678,1716253880462,-1528.43,0.00039726,6]
[327619679,1716253880471,-2000.21,0.00039726,6]
[327619680,1716253880481,-2220.28,0.00039726,6]
[327619681,1716253880490,-831.9,0.00039726,6]
[327619682,1716253880499,-500.0,0.00039726,6]
[327619683,1716253880508,-500.0,0.00039726,6]
[327619684,1716253880518,-1063.58,0.00039726,6]
[327619685,1716253880528,-566.57,0.00039726,6]
[327619686,1716253880538,-631.21,0.00039726,6]
[327619687,1716253880548,-839.51,0.00039726,6]
[327619688,1716253880559,-500.0,0.00039726,6]
[327619689,1716253880568,-1772.05,0.00039726,6]
[327619690,1716253880578,-965.68,0.00039726,6]
[327619691,1716253880588,-602.68,0.00039726,6]
[327619692,1716253880597,-921.58,0.00039726,6]
[327619693,1716253880607,-1394.51,0.00039726,6]
[327619694,1716253880616,-1162.17,0.00039726,6]
[327619695,1716253880627,-614.28,0.00039726,6]
[327619696,1716253880638,-1060.71,0.00039726,6]
[327619697,1716253880648,-500.0,0.00039726,6]
[327619698,1716253880657,-528.37,0.00039726,6]
[327619699,1716253880666,-500.0,0.00039726,6]
[327619700,1716253880676,-500.0,0.00039726,6]
[327619701,1716253880685,-1165.48,0.00039726,6]
[327619702,1716253880699,-500.0,0.00039726,6]
[327619703,1716253880710,-700.85,0.00039726,6]
[327619704,1716253880720,-500.0,0.00039726,6]
[327619705,1716253880729,-2925.39,0.00039726,6]
[327619706,1716253880740,-500.0,0.00039726,6]
[327619707,1716253880750,-1023.61,0.00039726,6]
[327619708,1716253880759,-500.0,0.00039726,6]
[327619709,1716253880768,-1192.72,0.00039726,6]
[327619710,1716253880778,-1322.43,0.00039726,6]
[327619711,1716253880787,-542.94,0.00039726,6]
[327619712,1716253880796,-500.0,0.00039726,6]
[327619713,1716253880806,-500.0,0.00039726,6]
[327619714,1716253880816,-1406.7,0.00039726,6]
[327619715,1716253880826,-683.34,0.00039726,6]
[327619716,1716253880835,-1895.45,0.00039726,6]
[327619717,1716253880845,-1170.56,0.00039726,6]
[327619718,1716253880854,-500.0,0.00039726,6]
[327619719,1716253880863,-500.0,0.00039726,6]
[327619720,1716253880873,-1440.84,0.00039726,6]
[327619721,1716253880883,-500.0,0.00039726,6]
[327619722,1716253880892,-500.0,0.00039726,6]
[327619723,1716253880901,-1246.71,0.00039726,6]
[327619724,1716253880911,-500.0,0.00039726,6]
[327619725,1716253880920,-2282.68,0.00039726,6]
[327619726,1716253880930,-500.0,0.00039726,6]
[327619727,1716253880942,-1032.78,0.00039726,6]
[327619728,1716253880951,-1145.65,0.00039726,6]
[327619729,1716253880960,-500.0,0.00039726,6]
[327619730,1716253880969,-500.0,0.00039726,6]
[327619731,1716253880978,-500.0,0.00039726,6]
[327619732,1716253880987,-1116.95,0.00039726,6]
[327619733,1716253880996,-1016.96,0.00039726,6]
[327619734,1716253881005,-500.0,0.00039726,6]
[327619735,1716253881015,-1090.03,0.00039726,6]
[327619736,1716253881024,-1315.47,0.00039726,6]
[327619737,1716253881033,-2113.96,0.00039726,6]
[327619738,1716253881043,-692.72,0.00039726,6]
[327619739,1716253881052,-687.02,0.00039726,6]
[327619740,1716253881062,-1662.51,0.00039726,6]
[327619741,1716253881072,-551.08,0.00039726,6]
[327619742,1716253881082,-600.87,0.00039726,6]
[327619743,1716253881091,-624.95400926,0.00039726,6]
[327619744,1716253881101,-1171.02,0.00039726,6]
[327619745,1716253881110,-500.0,0.00039726,6]
[327619746,1716253881119,-1221.16,0.00039726,6]
[327619747,1716253881129,-500.0,0.00039726,6]
[327619748,1716253881138,-2379.73,0.00039726,6]
[327619749,1716253881148,-1623.43,0.00039726,6]
[327619750,1716253881157,-543.23,0.00039726,6]
[327619751,1716253881237,-995.54,0.00039726,6]
[327619752,1716253881246,-1358.58,0.00039726,6]
[327619753,1716253881256,-1058.26,0.00039726,6]
[327619754,1716253881266,-1184.4,0.00039726,6]
[327619755,1716253881275,-668.51,0.00039726,6]
[327619756,1716253881284,-1155.28,0.00039726,6]
[327619757,1716253881293,-500.0,0.00039726,6]
[327619758,1716253881302,-300.0,0.00039726,6]
[327619759,1716253881311,-1390.14,0.00039726,6]
[327619760,1716253881320,-529.08,0.00039726,6]
[327619761,1716253881330,-1522.62,0.00039726,6]
[327619762,1716253881339,-2002.78,0.00039726,6]
[327619763,1716253881348,-660.52,0.00039726,6]
[327619764,1716253881358,-1218.08,0.00039726,6]
[327619765,1716253881367,-544.66,0.00039726,6]
[327619766,1716253881376,-1879.14,0.00039726,6]
[327619767,1716253881385,-804.63,0.00039726,6]
[327619768,1716253881394,-1151.64,0.00039726,6]
[327619769,1716253881403,-870.65,0.00039726,6]
[327619770,1716253881413,-500.0,0.00039726,6]
[327619771,1716253881422,-500.0,0.00039726,6]
[327619772,1716253881431,-1154.11,0.00039726,6]
[327619773,1716253881443,-500.0,0.00039726,6]
[327619774,1716253881453,-500.0,0.00039726,6]
[327619775,1716253881462,-797.88,0.00039726,6]
[327619776,1716253881472,-500.0,0.00039726,6]
[327619777,1716253881481,-2506.85,0.00039726,6]
[327619778,1716253881490,-1171.98,0.00039726,6]
[327619779,1716253881500,-2091.8,0.00039726,6]
[327619780,1716253881510,-3207.94,0.00039726,6]
[327619781,1716253881520,-500.0,0.00039726,6]
[327619782,1716253881530,-500.0,0.00039726,6]
[327619783,1716253881539,-862.69,0.00039726,6]
[327619784,1716253881548,-969.54,0.00039726,6]
[327619785,1716253881557,-500.0,0.00039726,6]
[327619786,1716253881567,-821.44,0.00039726,6]
[327619787,1716253881576,-500.0,0.00039726,6]
[327619788,1716253881585,-1077.51,0.00039726,6]
[327619789,1716253881594,-1046.16,0.00039726,6]
[327619790,1716253881603,-837.96,0.00039726,6]
[327619791,1716253881612,-500.0,0.00039726,6]
[327619792,1716253881621,-997.41,0.00039726,6]
[327619793,1716253881630,-1260.3,0.00039726,6]
[327619794,1716253881640,-3518.67,0.00039726,6]
[327619795,1716253881649,-820.42,0.00039726,6]
[327619796,1716253881658,-1158.6,0.00039726,6]
[327619797,1716253881668,-1004.59,0.00039726,6]
[327619798,1716253881678,-681.29,0.00039726,6]
[327619799,1716253881687,-3042.77,0.00039726,6]
[327619800,1716253881699,-647.74,0.00039726,6]
[327619801,1716253881709,-500.0,0.00039726,6]
[327619802,1716253881718,-5346.33,0.00039726,6]
[327619803,1716253881728,-943.14,0.00039726,6]
[327619804,1716253881738,-1121.25,0.00039726,6]
[327619805,1716253881747,-515.21,0.00039726,6]
[327619806,1716253881757,-500.0,0.00039726,6]
[327619807,1716253881767,-658.73,0.00039726,6]
[327619808,1716253881776,-1237.07,0.00039726,6]
[327619809,1716253881785,-990.67,0.00039726,6]
[327619810,1716253881795,-19167.87,0.00039726,6]
[327619811,1716253881804,-500.0,0.00039726,6]
[327619812,1716253881815,-3079.47,0.00039726,6]
[327619813,1716253881824,-1616.35,0.00039726,6]
[327619814,1716253881834,-2748.26,0.00039726,6]
[327619815,1716253881843,-500.0,0.00039726,6]